fUST/lending_fUST_20240701
["ID","MTS","AMOUNT","RATE_DAILY","PERIOD"]
[330766197,1719763843429,-6348.11835444,0.00015627,2]
[330766199,1719763843440,-5243.18164556,0.00015627,2]
[330766202,1719763843450,-500.0,0.00015627,2]
[330766203,1719763843459,-914.63,0.00015627,2]
[330766205,1719763843468,-1204.15,0.00015627,2]
[330766207,1719763843477,-3583.99,0.00015627,2]
[330766210,1719763843486,-784.84,0.00015627,2]
[330766212,1719763843495,-2528.91040782,0.00015628,2]
[330766214,1719763843505,-500.0,0.00015628,2]
[330766216,1719763843514,-500.0,0.00015628,2]
[330766218,1719763843523,-597.16,0.00015628,2]
[330766220,1719763843532,-500.0,0.00015628,2]
[330766222,1719763843543,-2719.84,0.00015628,2]
[330766223,1719763843552,-500.0,0.00015628,2]
[330766225,1719763843561,-500.0,0.00015628,2]
[330766227,1719763843576,-500.0,0.00015628,2]
[330766229,1719763843585,-500.0,0.00015628,2]
[330766231,1719763843594,-500.0,0.00015628,2]
[330766233,1719763843603,-500.0,0.00015628,2]
[330766235,1719763843612,-555.1,0.00015628,2]
[330766237,1719763843621,-500.0,0.00015628,2]
[330766239,1719763843631,-500.0,0.00015628,2]
[330766251,1719763843640,-792.47,0.00015628,2]
[330766253,1719763843745,-3424.47,0.00015628,2]
[330766255,1719763843756,-685.71,0.00015628,2]
[330766257,1719763843765,-619.1,0.00015628,2]
[330766259,1719763843775,-500.0,0.00015628,2]
[330766261,1719763843784,-710.79,0.00015628,2]
[330766263,1719763843793,-410.64477722,0.00015628,2]
[330766265,1719763843802,-509.14,0.00015628,2]
[330766267,1719763843811,-500.0,0.00015628,2]
[330766269,1719763843820,-642.45,0.00015628,2]
[330766271,1719763843829,-500.0,0.00015628,2]
[330766273,1719763843838,-500.0,0.00015628,2]
[330766275,1719763843848,-3064.44,0.00015628,2]
[330766277,1719763843857,-500.0,0.00015628,2]
[330766279,1719763843866,-3614.49,0.00015628,2]
[330766281,1719763843875,-500.0,0.00015628,2]
[330766283,1719763843884,-500.0,0.00015628,2]
[330766285,1719763843893,-1171.04,0.00015628,2]
[330766287,1719763843903,-500.0,0.00015628,2]
[330766289,1719763843911,-500.0,0.00015628,2]
[330766291,1719763843920,-911.96,0.00015628,2]
[330766293,1719763843929,-500.0,0.00015628,2]
[330766294,1719763843938,-500.0,0.00015628,2]
[330766296,1719763843947,-1135.85,0.00015628,2]
[330766298,1719763843956,-546.74,0.00015628,2]
[330766300,1719763843965,-1506.78,0.00015628,2]
[330766302,1719763843974,-751.6,0.00015628,2]
[330766304,1719763843984,-500.0,0.00015628,2]
[330766306,1719763843993,-500.0,0.00015628,2]
[330766308,1719763844002,-500.0,0.00015628,2]
[330766311,1719763844016,-574.50141139,0.00015628,2]
[330766312,1719763844028,-500.0,0.00015628,2]
[330766314,1719763844039,-500.0,0.00015628,2]
[330766316,1719763844049,-500.0,0.00015628,2]
[330766318,1719763844058,-1830.63,0.00015628,2]
[330766321,1719763844068,-1346.09,0.00015628,2]
[330766322,1719763844078,-505.39705489,0.00015628,2]
[330766324,1719763844087,-500.0,0.00015628,2]
[330766326,1719763844095,-500.0,0.00015628,2]
[330766328,1719763844104,-500.0,0.00015628,2]
[330766330,1719763844118,-1027.12,0.00015628,2]
[330766333,1719763844127,-500.0,0.00015628,2]
[330766335,1719763844136,-962.0,0.00015628,2]
[330766337,1719763844147,-793.71,0.00015628,2]
[330766339,1719763844156,-663.33,0.00015628,2]
[330766341,1719763844164,-1263.87,0.00015628,2]
[330766342,1719763844174,-685.35,0.00015628,2]
[330766344,1719763844183,-1013.79,0.00015628,2]
[330766346,1719763844192,-500.0,0.00015628,2]
[330766349,1719763844203,-500.0,0.00015628,2]
[330766351,1719763844213,-701.86,0.00015628,2]
[330766352,1719763844222,-551.38,0.00015628,2]
[330766354,1719763844231,-872.13,0.00015628,2]
[330766357,1719763844240,-500.0,0.00015628,2]
[330766359,1719763844250,-500.0,0.00015628,2]
[330766360,1719763844260,-500.0,0.00015628,2]
[330766362,1719763844269,-564.93040162,0.00015628,2]
[330766365,1719763844278,-500.0,0.00015628,2]
[330766367,1719763844290,-500.0,0.00015628,2]
[330766368,1719763844300,-500.0,0.00015628,2]
[330766371,1719763844309,-555.59,0.00015628,2]
[330766373,1719763844319,-501.49888466,0.00015628,2]
[330766375,1719763844330,-500.0,0.00015628,2]
[330766376,1719763844340,-711.91,0.00015628,2]
[330766378,1719763844350,-1022.94,0.00015628,2]
[330766381,1719763844363,-500.0,0.00015628,2]
[330766383,1719763844373,-1667.88,0.00015628,2]
[330766384,1719763844382,-500.0,0.00015628,2]
[330766386,1719763844392,-223.372278,0.00015628,2]
[330766389,1719763844402,-151.0,0.00015628,2]
[330766390,1719763844413,-537.16,0.00015628,2]
[330766392,1719763844422,-3445.37,0.00015628,2]
[330766395,1719763844432,-500.0,0.00015628,2]
[330766397,1719763844442,-151.0,0.00015628,2]
[330766399,1719763844451,-198.899793,0.00015628,2]
[330766401,1719763844460,-505.0772666,0.00015628,2]
[330766402,1719763844469,-558.6252966,0.00015628,2]
[330766405,1719763844478,-500.0,0.00015628,2]
[330766406,1719763844487,-198.899793,0.00015628,2]
[330766408,1719763844496,-16350.28,0.00015628,2]
[330766411,1719763844506,-500.0,0.00015628,2]
[330766413,1719763844516,-500.0,0.00015628,2]
[330766415,1719763844525,-151.0,0.00015628,2]
[330766417,1719763844534,-1190.7,0.00015628,2]
[330766419,1719763844543,-151.0,0.00015628,2]
[330766420,1719763844552,-151.0,0.00015628,2]
[330766423,1719763844562,-151.0,0.00015628,2]
[330766424,1719763844572,-151.0,0.00015628,2]
[330766426,1719763844582,-151.0,0.00015628,2]
[330766428,1719763844591,-151.0,0.00015628,2]
[330766430,1719763844600,-500.0,0.00015628,2]
[330766432,1719763844610,-151.0,0.00015628,2]
[330766434,1719763844619,-500.0,0.00015628,2]
[330766436,1719763844628,-173.099065,0.00015628,2]
[330766437,1719763844637,-651.93,0.00015628,2]
[330766439,1719763844648,-151.0,0.00015628,2]
[330766441,1719763844657,-5595.53,0.00015628,2]
[330766443,1719763844669,-1110.330723,0.00015628,2]
[330766445,1719763844679,-1180.5,0.00015628,2]
[330766447,1719763844688,-151.0,0.00015628,2]
[330766449,1719763844697,-1110.330723,0.00015628,2]
[330766451,1719763844708,-500.0,0.00015628,2]
[330766453,1719763844717,-325.056556,0.00015628,2]
[330766455,1719763844726,-325.056556,0.00015628,2]
[330766457,1719763844736,-504.62852629,0.00015628,2]
[330766459,1719763844747,-150.3598462,0.00015628,2]
[330766485,1719763844988,-500.0,0.0001508,2]
[330766487,1719763844998,-2188.3001538,0.00015628,2]
[330766489,1719763845009,-244.18779359,0.00015628,2]
[330766491,1719763845018,-838.23,0.00015628,2]
[330766493,1719763845028,-151.0,0.00015628,2]
[330766495,1719763845038,-545.02306813,0.00015628,2]
[330766497,1719763845047,-1305.287559,0.00015628,2]
[330766499,1719763845056,-500.0,0.00015628,2]
[330766510,1719763845151,-151.0,0.00015628,2]
[330766512,1719763845161,-1305.287559,0.00015628,2]
[330766514,1719763845170,-507.34931659,0.00015628,2]
[330766516,1719763845179,-504.13193091,0.00015628,2]
[330766518,1719763845189,-151.0,0.00015628,2]
[330766520,1719763845199,-1048.69,0.00015628,2]
[330766522,1719763845208,-508.36719404,0.00015628,2]
[330766524,1719763845217,-633.0,0.00015628,2]
[330766526,1719763845226,-546.61724597,0.00015628,2]
[330766528,1719763845236,-500.0,0.00015628,2]
[330766530,1719763845245,-151.0,0.00015628,2]
[330766532,1719763845255,-1173.82,0.00015628,2]
[330766534,1719763845264,-500.0,0.00015628,2]
[330766536,1719763845274,-503.17665852,0.00015628,2]
[330766538,1719763845283,-647.25,0.00015628,2]
[330766540,1719763845292,-560.18,0.00015628,2]
[330766542,1719763845303,-8009.752223,0.00015628,2]
[330766544,1719763845312,-500.0,0.00015628,2]
[330766547,1719763845322,-500.0,0.00015628,2]
[330766549,1719763845332,-8009.752223,0.00015628,2]
[330766551,1719763845341,-153.319898,0.00015628,2]
[330766552,1719763845350,-500.0,0.00015628,2]
[330766554,1719763845359,-1126.26,0.00015628,2]
[330766556,1719763845368,-500.0,0.00015628,2]
[330766558,1719763845377,-661.074698,0.00015628,2]
[330766560,1719763845386,-500.0,0.00015628,2]
[330766562,1719763845396,-661.074698,0.00015628,2]
[330766564,1719763845405,-1064.822849,0.00015628,2]
[330766566,1719763845414,-500.0,0.00015628,2]
[330766568,1719763845423,-500.0,0.00015628,2]
[330766570,1719763845432,-683.48,0.00015628,2]
[330766572,1719763845441,-1064.822849,0.00015628,2]
[330766574,1719763845450,-2073.23,0.00015628,2]
[330766576,1719763845460,-1122.76,0.00015628,2]
[330766578,1719763845469,-500.0,0.00015628,2]
[330766580,1719763845478,-2375.539887,0.00015628,2]
[330766582,1719763845487,-3089.708779,0.00015628,2]
[330766583,1719763845496,-1385.73,0.00015628,2]
[330766585,1719763845506,-2375.539887,0.00015628,2]
[330766587,1719763845515,-625.34,0.00015628,2]
[330766589,1719763845523,-3089.708779,0.00015628,2]
[330766591,1719763845533,-151.0,0.00015628,2]
[330766593,1719763845541,-2392.53,0.00015628,2]
[330766595,1719763845551,-151.0,0.00015628,2]
[330766598,1719763845560,-784.31,0.00015628,2]
[330766601,1719763845568,-1347.47,0.00015628,2]
[330766603,1719763845578,-500.0,0.00015628,2]
[330766606,1719763845587,-690.51,0.00015628,2]
[330766609,1719763845597,-500.0,0.00015628,2]
[330766611,1719763845605,-500.0,0.00015628,2]
[330766614,1719763845615,-602.01,0.00015628,2]
[330766618,1719763845624,-819.83,0.00015628,2]
[330766622,1719763845633,-273.908754,0.00015628,2]
[330766626,1719763845642,-500.0,0.00015628,2]
[330766630,1719763845651,-2717.6,0.00015628,2]
[330766635,1719763845662,-151.0,0.00015628,2]
[330766640,1719763845678,-500.0,0.00015628,2]
[330766643,1719763845686,-151.0,0.00015628,2]
[330766646,1719763845696,-500.0,0.00015628,2]
[330766649,1719763845705,-500.0,0.00015628,2]
[330766652,1719763845716,-759.22,0.00015628,2]
[330766655,1719763845725,-500.0,0.00015628,2]
[330766658,1719763845735,-500.0,0.00015628,2]
[330766661,1719763845744,-500.0,0.00015628,2]
[330766663,1719763845757,-500.0,0.00015628,2]
[330766665,1719763845767,-500.0,0.00015628,2]
[330766666,1719763845777,-3303.86,0.00015629,2]
[330766668,1719763845786,-3303.86,0.00015629,2]
[330766670,1719763845798,-151.0,0.00015629,2]
[330766672,1719763845807,-1562.5,0.00015629,2]
[330766674,1719763845817,-754.69,0.00015629,2]
[330766676,1719763845826,-151.0,0.00015629,2]
[330766678,1719763845835,-262.99462,0.00015629,2]
[330766680,1719763845845,-151.0,0.00015629,2]
[330766682,1719763845854,-151.0,0.00015629,2]
[330766684,1719763845864,-151.0,0.00015629,2]
[330766686,1719763845873,-19041.74,0.00015629,2]
[330766688,1719763845882,-151.0,0.00015629,2]
[330766690,1719763845891,-500.0,0.00015629,2]
[330766692,1719763845900,-968.537188,0.00015629,2]
[330766694,1719763845909,-1488.78,0.00015629,2]
[330766695,1719763845919,-968.537188,0.00015629,2]
[330766697,1719763845928,-151.0,0.00015629,2]
[330766699,1719763845937,-3478.08,0.00015629,2]
[330766701,1719763845947,-151.0,0.00015629,2]
[330766703,1719763845956,-221.229111,0.00015629,2]
[330766705,1719763845966,-221.229111,0.00015629,2]
[330766707,1719763845974,-1112.214159,0.00015629,2]
[330766709,1719763845983,-500.0,0.00015629,2]
[330766711,1719763845992,-1112.214159,0.00015629,2]
[330766713,1719763846002,-151.0,0.00015629,2]
[330766715,1719763846013,-1240.182729,0.00015629,2]
[330766717,1719763846022,-1793.849627,0.00015629,2]
[330766719,1719763846031,-1240.182729,0.00015629,2]
[330766721,1719763846040,-1793.849627,0.00015629,2]
[330766722,1719763846050,-500.0,0.00015629,2]
[330766724,1719763846059,-151.0,0.00015629,2]
[330766726,1719763846068,-151.0,0.00015629,2]
[330766728,1719763846077,-198.899793,0.00015629,2]
[330766730,1719763846087,-1914.77,0.00015629,2]
[330766732,1719763846096,-198.899793,0.00015629,2]
[330766734,1719763846105,-151.0,0.00015629,2]
[330766736,1719763846114,-1110.330723,0.00015629,2]
[330766738,1719763846123,-151.0,0.00015629,2]
[330766740,1719763846132,-1110.330723,0.00015629,2]
[330766742,1719763846142,-500.0,0.00015629,2]
[330766743,1719763846152,-325.056556,0.00015629,2]
[330766745,1719763846161,-325.056556,0.00015629,2]
[330766747,1719763846170,-151.0,0.00015629,2]
[330766749,1719763846179,-1305.287559,0.00015629,2]
[330766751,1719763846191,-151.0,0.00015629,2]
[330766753,1719763846200,-1305.287559,0.00015629,2]
[330766755,1719763846209,-284.42713309,0.00015629,2]
[330766757,1719763846218,-151.0,0.00015629,2]
[330766759,1719763846227,-151.0,0.00015629,2]
[330766760,1719763846236,-8009.752223,0.00015629,2]
[330766762,1719763846245,-8009.752223,0.00015629,2]
[330766764,1719763846255,-661.074698,0.00015629,2]
[330766766,1719763846264,-661.074698,0.00015629,2]
[330766768,1719763846273,-1402.32,0.00015629,2]
[330766770,1719763846282,-1064.822849,0.00015629,2]
[330766772,1719763846292,-1064.822849,0.00015629,2]
[330766774,1719763846302,-2375.539887,0.00015629,2]
[330766776,1719763846311,-3089.708779,0.00015629,2]
[330766778,1719763846320,-2375.539887,0.00015629,2]
[330766780,1719763846330,-3089.708779,0.00015629,2]
[330766782,1719763846339,-173.48049,0.00015629,2]
[330766784,1719763846348,-151.0,0.00015629,2]
[330766786,1719763846358,-151.0,0.00015629,2]
[330766788,1719763846367,-151.0,0.00015629,2]
[330766798,1719763846455,-2404.95,0.00015629,2]
[330766800,1719763846464,-3303.86,0.0001563,2]
[330766802,1719763846473,-500.0,0.0001563,2]
[330766804,1719763846483,-500.0,0.0001563,2]
[330766806,1719763846492,-500.0,0.0001563,2]
[330766807,1719763846501,-151.0,0.0001563,2]
[330766809,1719763846510,-1330.89,0.0001563,2]
[330766811,1719763846519,-555.92,0.0001563,2]
[330766813,1719763846531,-1512.82,0.0001563,2]
[330766815,1719763846541,-500.0,0.0001563,2]
[330766817,1719763846550,-1256.43,0.0001563,2]
[330766819,1719763846559,-500.0,0.0001563,2]
[330766821,1719763846568,-500.0,0.0001563,2]
[330766823,1719763846580,-587.55,0.0001563,2]
[330766825,1719763846589,-500.15,0.0001563,2]
[330766827,1719763846598,-963.57,0.0001563,2]
[330766829,1719763846607,-151.0,0.0001563,2]
[330766831,1719763846620,-151.0,0.0001563,2]
[330766833,1719763846628,-151.0,0.0001563,2]
[330766835,1719763846638,-500.0,0.0001563,2]
[330766837,1719763846647,-2964.06,0.0001563,2]
[330766839,1719763846656,-500.0,0.0001563,2]
[330766841,1719763846665,-500.0,0.0001563,2]
[330766843,1719763846680,-500.0,0.0001563,2]
[330766845,1719763846689,-500.0,0.0001563,2]
[330766847,1719763846698,-500.0,0.0001563,2]
[330766849,1719763846708,-522.25,0.0001563,2]
[330766851,1719763846718,-600.27,0.0001563,2]
[330766853,1719763846728,-1075.04,0.0001563,2]
[330766855,1719763846736,-2143.19,0.0001563,2]
[330766857,1719763846746,-602.39,0.0001563,2]
[330766859,1719763846756,-862.04,0.0001563,2]
[330766861,1719763846766,-864.17,0.0001563,2]
[330766863,1719763846775,-2574.36,0.0001563,2]
[330766865,1719763846784,-500.0,0.0001563,2]
[330766867,1719763846793,-501.61,0.0001563,2]
[330766869,1719763846802,-568.43,0.0001563,2]
[330766871,1719763846812,-552.23,0.0001563,2]
[330766872,1719763846821,-1338.55,0.0001563,2]
[330766874,1719763846833,-500.0,0.0001563,2]
[330766876,1719763846842,-500.0,0.0001563,2]
[330766878,1719763846851,-500.0,0.0001563,2]
[330766880,1719763846860,-1705.34,0.0001563,2]
[330766882,1719763846869,-500.0,0.0001563,2]
[330766884,1719763846879,-1380.49,0.0001563,2]
[330766886,1719763846888,-2327.99,0.0001563,2]
[330766888,1719763846897,-500.0,0.0001563,2]
[330766890,1719763846907,-622.48,0.0001563,2]
[330766892,1719763846916,-800.87,0.0001563,2]
[330766894,1719763846925,-500.0,0.0001563,2]
[330766896,1719763846934,-610.51,0.0001563,2]
[330766897,1719763846943,-554.93,0.0001563,2]
[330766899,1719763846953,-633.02,0.00015631,2]
[330766901,1719763846962,-500.0,0.00015631,2]
[330766903,1719763846971,-835.5,0.00015631,2]
[330766905,1719763846980,-500.0,0.00015631,2]
[330766907,1719763846989,-560.74,0.00015631,2]
[330766909,1719763846999,-500.0,0.00015631,2]
[330766911,1719763847008,-500.0,0.00015631,2]
[330766913,1719763847018,-1521.22,0.00015631,2]
[330766915,1719763847027,-980.95,0.00015631,2]
[330766917,1719763847037,-500.0,0.00015631,2]
[330766919,1719763847046,-500.0,0.00015631,2]
[330766921,1719763847056,-500.0,0.00015631,2]
[330766923,1719763847065,-521.57931281,0.00015631,2]
[330766925,1719763847075,-500.0,0.00015631,2]
[330766926,1719763847088,-500.0,0.00015631,2]
[330766928,1719763847097,-579.84535863,0.00015631,2]
[330766930,1719763847109,-500.0,0.00015631,2]
[330766931,1719763847118,-557.42,0.00015631,2]
[330766933,1719763847127,-500.0,0.00015631,2]
[330766934,1719763847136,-500.0,0.00015631,2]
[330766935,1719763847145,-500.0,0.00015631,2]
[330766936,1719763847154,-500.0,0.00015631,2]
[330766937,1719763847163,-500.0,0.00015631,2]
[330766938,1719763847173,-500.0,0.00015631,2]
[330766939,1719763847182,-500.0,0.00015631,2]
[330766940,1719763847192,-500.0,0.00015631,2]
[330766941,1719763847203,-622.08543279,0.00015631,2]
[330766942,1719763847213,-1325.0,0.00015631,2]
[330766943,1719763847223,-500.0,0.00015631,2]
[330766944,1719763847232,-500.0,0.00015631,2]
[330766945,1719763847241,-500.0,0.00015631,2]
[330766946,1719763847250,-725.25,0.00015631,2]
[330766947,1719763847260,-500.0,0.00015631,2]
[330766948,1719763847270,-276.08140039,0.00015631,2]
[330766949,1719763847280,-500.0,0.00015631,2]
[330766950,1719763847290,-250.2275,0.00015631,2]
[330766951,1719763847299,-500.0,0.00015631,2]
[330766953,1719763847308,-250.2275,0.00015631,2]
[330766954,1719763847317,-613.09686289,0.00015631,2]
[330766956,1719763847328,-387.67568367,0.00015631,2]
[330766957,1719763847339,-500.0,0.00015631,2]
[330766958,1719763847349,-800.51,0.00015631,2]
[330766959,1719763847359,-500.0,0.00015631,2]
[330766960,1719763847368,-500.0,0.00015631,2]
[330766961,1719763847377,-500.0,0.00015631,2]
[330766962,1719763847386,-587.07,0.00015631,2]
[330766963,1719763847395,-1626.09,0.00015631,2]
[330766964,1719763847405,-500.0,0.00015631,2]
[330766965,1719763847415,-526.14,0.00015631,2]
[330766966,1719763847424,-500.0,0.00015631,2]
[330766967,1719763847435,-500.0,0.00015631,2]
[330766969,1719763847445,-500.0,0.00015631,2]
[330766971,1719763847454,-500.0,0.00015631,2]
[330766973,1719763847464,-538.94,0.00015631,2]
[330766974,1719763847473,-500.0,0.00015631,2]
[330766976,1719763847484,-500.0,0.00015631,2]
[330766978,1719763847494,-3303.86,0.00015631,2]
[330766979,1719763847503,-3303.86,0.00015631,2]
[330766980,1719763847512,-3303.86,0.00015631,2]
[330766981,1719763847522,-575.91855851,0.00015631,2]
[330766982,1719763847532,-500.0,0.00015631,2]
[330766983,1719763847541,-772.79,0.00015631,2]
[330766984,1719763847550,-500.0,0.00015631,2]
[330766985,1719763847560,-500.0,0.00015631,2]
[330766986,1719763847569,-622.35,0.00015631,2]
[330766987,1719763847581,-500.0,0.00015631,2]
[330766988,1719763847590,-528.67057056,0.00015631,2]
[330766989,1719763847677,-674.57,0.00015631,2]
[330766990,1719763847687,-500.0,0.00015631,2]
[330766991,1719763847697,-500.0,0.00015631,2]
[330766992,1719763847707,-500.0,0.00015631,2]
[330766993,1719763847719,-500.0,0.00015631,2]
[330766994,1719763847729,-500.0,0.00015631,2]
[330766995,1719763847738,-151.0,0.00015631,2]
[330766996,1719763847749,-500.0,0.00015631,2]
[330766997,1719763847758,-500.0,0.00015631,2]
[330766998,1719763847768,-500.0,0.00015631,2]
[330766999,1719763847778,-500.0,0.00015631,2]
[330767000,1719763847788,-862.82,0.00015631,2]
[330767001,1719763847798,-500.0,0.00015631,2]
[330767002,1719763847809,-500.0,0.00015631,2]
[330767003,1719763847818,-500.0,0.00015631,2]
[330767004,1719763847829,-500.0,0.00015631,2]
[330767005,1719763847839,-1277.19,0.00015631,2]
[330767006,1719763847850,-500.0,0.00015631,2]
[330767007,1719763847859,-500.0,0.00015631,2]
[330767008,1719763847870,-167.48737537,0.00015631,2]
[330767009,1719763847879,-615.46,0.00015631,2]
[330767010,1719763847889,-500.0,0.00015631,2]
[330767011,1719763847899,-151.0,0.00015631,2]
[330767012,1719763847908,-500.0,0.00015631,2]
[330767013,1719763847918,-968.537188,0.00015631,2]
[330767014,1719763847928,-293.66574153,0.00015631,2]
[330767015,1719763847937,-500.0,0.00015631,2]
[330767016,1719763847947,-968.537188,0.00015631,2]
[330767017,1719763847957,-295.93351,0.00015631,2]
[330767018,1719763847967,-500.0,0.00015631,2]
[330767019,1719763847977,-500.0,0.00015631,2]
[330767020,1719763847986,-962.72,0.00015631,2]
[330767021,1719763847996,-1682.43,0.00015631,2]
[330767022,1719763848005,-500.0,0.00015631,2]
[330767023,1719763848016,-500.0,0.00015631,2]
[330767024,1719763848026,-221.229111,0.00015631,2]
[330767025,1719763848037,-221.229111,0.00015631,2]
[330767026,1719763848047,-1112.214159,0.00015631,2]
[330767027,1719763848057,-1112.214159,0.00015631,2]
[330767028,1719763848066,-186.349614,0.00015631,2]
[330767029,1719763848078,-1240.182729,0.00015631,2]
[330767030,1719763848087,-1793.849627,0.00015631,2]
[330767031,1719763848097,-1240.182729,0.00015631,2]
[330767032,1719763848106,-1793.849627,0.00015631,2]
[330767033,1719763848115,-151.0,0.00015631,2]
[330767034,1719763848125,-151.0,0.00015631,2]
[330767035,1719763848135,-198.899793,0.00015631,2]
[330767036,1719763848144,-198.899793,0.00015631,2]
[330767037,1719763848154,-151.0,0.00015631,2]
[330767038,1719763848164,-1110.330723,0.00015631,2]
[330767039,1719763848174,-151.0,0.00015631,2]
[330767040,1719763848183,-1110.330723,0.00015631,2]
[330767041,1719763848193,-325.056556,0.00015631,2]
[330767042,1719763848202,-325.056556,0.00015631,2]
[330767043,1719763848214,-151.0,0.00015631,2]
[330767044,1719763848235,-1305.287559,0.00015631,2]
[330767045,1719763848254,-151.0,0.00015631,2]
[330767046,1719763848273,-1305.287559,0.00015631,2]
[330767047,1719763848294,-151.0,0.00015631,2]
[330767048,1719763848314,-151.0,0.00015631,2]
[330767049,1719763848334,-8009.752223,0.00015631,2]
[330767050,1719763848350,-8009.752223,0.00015631,2]
[330767051,1719763848367,-661.074698,0.00015631,2]
[330767052,1719763848385,-661.074698,0.00015631,2]
[330767053,1719763848406,-1064.822849,0.00015631,2]
[330767054,1719763848419,-1064.822849,0.00015631,2]
[330767055,1719763848436,-2375.539887,0.00015631,2]
[330767056,1719763848452,-3089.708779,0.00015631,2]
[330767057,1719763848469,-2375.539887,0.00015631,2]
[330767058,1719763848483,-3089.708779,0.00015631,2]
[330767059,1719763848497,-151.0,0.00015631,2]
[330767060,1719763848512,-151.0,0.00015631,2]
[330767061,1719763848527,-161.11108,0.00015631,2]
[330767062,1719763848542,-501.12905021,0.00015632,2]
[330767063,1719763848558,-3303.86,0.00015632,2]
[330767064,1719763848573,-3303.86,0.00015632,2]
[330767065,1719763848589,-500.0,0.00015632,2]
[330767066,1719763848604,-500.0,0.00015632,2]
[330767067,1719763848620,-645.19,0.00015632,2]
[330767068,1719763848635,-204.760178,0.00015633,2]
[330767069,1719763848650,-151.0,0.00015633,2]
[330767070,1719763848666,-160.105931,0.00015633,2]
[330767071,1719763848685,-3303.86,0.00015633,2]
[330767072,1719763848700,-3303.86,0.00015633,2]
[330767073,1719763848717,-3303.86,0.00015633,2]
[330767074,1719763848732,-151.0,0.00015633,2]
[330767075,1719763848749,-151.0,0.00015633,2]
[330767076,1719763848764,-151.0,0.00015633,2]
[330767077,1719763848779,-500.0,0.00015633,2]
[330767078,1719763848794,-23458.26,0.00015633,2]
[330767079,1719763848808,-747.95,0.00015633,2]
[330767080,1719763848823,-151.0,0.00015634,2]
[330767081,1719763848839,-3303.86,0.00015634,2]
[330767082,1719763848853,-151.0,0.00015634,2]
[330767083,1719763848868,-151.0,0.00015634,2]
[330767084,1719763848882,-774.6,0.00015634,2]
[330767085,1719763848898,-151.0,0.00015634,2]
[330767086,1719763848912,-968.537188,0.00015634,2]
[330767087,1719763848929,-968.537188,0.00015634,2]
[330767088,1719763848943,-713.89,0.00015634,2]
[330767089,1719763848958,-221.229111,0.00015634,2]
[330767090,1719763848974,-221.229111,0.00015634,2]
[330767091,1719763848988,-1112.214159,0.00015634,2]
[330767092,1719763849004,-1112.214159,0.00015634,2]
[330767093,1719763849020,-1240.182729,0.00015634,2]
[330767094,1719763849034,-1793.849627,0.00015634,2]
[330767095,1719763849045,-1240.182729,0.00015634,2]
[330767096,1719763849056,-1793.849627,0.00015634,2]
[330767097,1719763849067,-151.0,0.00015634,2]
[330767098,1719763849077,-263.490174,0.00015634,2]
[330767099,1719763849228,-198.899793,0.00015634,2]
[330767100,1719763849245,-198.899793,0.00015634,2]
[330767101,1719763849255,-3036.38,0.00015634,2]
[330767102,1719763849264,-151.0,0.00015634,2]
[330767103,1719763849273,-1110.330723,0.00015634,2]